[Event "Titled Tuesday Blitz March 21 Late 2023"]
[White "Koellner, Ruben Gideon"]
[Black "Manukyan, Sargis A."]
[WhiteFideId "12993093"]
[BlackFideId "13303970"]
[WhiteElo "2303"]
[BlackElo "2187"]
[Result "0-1"]
[Round "04"]
[TimeControl "180+2"]
[Date "2023.03.21"]
[WhiteClock "0:00:03"]
[BlackClock "0:00:42"]

1. d4 {[%clk 0:03:00]}  d5 {[%clk 0:02:59]} 2. Nf3 {[%clk 0:03:00]}  Nf6 {[%clk 0:03:00]} 3. e3 {[%clk 0:02:59]}  e6 {[%clk 0:03:00]} 4. Nbd2 {[%clk 0:02:59]}  Be7 {[%clk 0:03:01]} 5. Bd3 {[%clk 0:02:58]}  O-O {[%clk 0:03:02]} 6. O-O {[%clk 0:02:59]}  b6 {[%clk 0:03:03]} 7. Ne5 {[%clk 0:02:58]}  Ba6 {[%clk 0:03:02]} 8. f4 {[%clk 0:02:56]}  Bxd3 {[%clk 0:03:02]} 9. cxd3 {[%clk 0:02:57]}  Nfd7 {[%clk 0:03:02]} 10. Qh5 {[%clk 0:02:56]}  f6 {[%clk 0:02:56]} 11. Nxd7 {[%clk 0:02:55]}  Qxd7 {[%clk 0:02:57]} 12. Nf3 {[%clk 0:02:54]}  Qe8 {[%clk 0:02:57]} 13. Qh3 {[%clk 0:02:54]}  f5 {[%clk 0:02:57]} 14. Ne5 {[%clk 0:02:52]}  Bd6 {[%clk 0:02:52]} 15. Bd2 {[%clk 0:02:49]}  Bxe5 {[%clk 0:02:52]} 16. fxe5 {[%clk 0:02:48]}  Nd7 {[%clk 0:02:52]} 17. Rac1 {[%clk 0:02:46]}  Rc8 {[%clk 0:02:51]} 18. b4 {[%clk 0:02:42]}  c5 {[%clk 0:02:51]} 19. bxc5 {[%clk 0:02:40]}  bxc5 {[%clk 0:02:52]} 20. dxc5 {[%clk 0:02:41]}  Nxe5 {[%clk 0:02:38]} 21. d4 {[%clk 0:02:40]}  Nc4 {[%clk 0:02:38]} 22. Be1 {[%clk 0:02:38]}  Qa4 {[%clk 0:02:36]} 23. Qf3 {[%clk 0:02:33]}  Qxa2 {[%clk 0:02:35]} 24. Bg3 {[%clk 0:02:29]}  Qa3 {[%clk 0:02:34]} 25. Rfe1 {[%clk 0:02:27]}  a5 {[%clk 0:02:18]} 26. Bf4 {[%clk 0:02:23]}  Nd2 {[%clk 0:02:16]} 27. Qe2 {[%clk 0:02:19]}  Ne4 {[%clk 0:02:15]} 28. Ra1 {[%clk 0:02:18]}  Qb4 {[%clk 0:02:12]} 29. Reb1 {[%clk 0:02:18]}  Nc3 {[%clk 0:02:11]} 30. Rxb4 {[%clk 0:02:11]}  Nxe2+ {[%clk 0:02:11]} 31. Kf2 {[%clk 0:02:08]}  Nxf4 {[%clk 0:02:11]} 32. Rb3 {[%clk 0:02:00]}  Ng6 {[%clk 0:02:09]} 33. Rxa5 {[%clk 0:02:00]}  f4 {[%clk 0:02:10]} 34. Rb6 {[%clk 0:01:56]}  fxe3+ {[%clk 0:02:10]} 35. Kxe3 {[%clk 0:01:57]}  e5 {[%clk 0:02:08]} 36. Rd6 {[%clk 0:01:56]}  exd4+ {[%clk 0:02:08]} 37. Kxd4 {[%clk 0:01:57]}  Rf4+ {[%clk 0:02:06]} 38. Kxd5 {[%clk 0:01:56]}  Rf5+ {[%clk 0:02:06]} 39. Kd4 {[%clk 0:01:52]}  Ne7 {[%clk 0:02:01]} 40. Rb5 {[%clk 0:01:42]}  Nc6+ {[%clk 0:01:56]} 41. Ke4 {[%clk 0:01:41]}  Re5+ {[%clk 0:01:56]} 42. Kf4 {[%clk 0:01:40]}  Rf8+ {[%clk 0:01:55]} 43. Kg3 {[%clk 0:01:38]}  Re3+ {[%clk 0:01:53]} 44. Kg4 {[%clk 0:01:38]}  Ne5+ {[%clk 0:01:53]} 45. Kh4 {[%clk 0:01:27]}  h6 {[%clk 0:01:43]} 46. c6 {[%clk 0:01:13]}  g6 {[%clk 0:01:40]} 47. Rb4 {[%clk 0:00:52]}  Kg7 {[%clk 0:01:13]} 48. Rb7+ {[%clk 0:00:20]}  Nf7 {[%clk 0:00:54]} 49. Rd4 {[%clk 0:00:05]}  g5+ {[%clk 0:00:45]} 50. Kg4 {[%clk 0:00:04]}  Kg6 {[%clk 0:00:45]} 51. g3 {[%clk 0:00:03]}  h5+ {[%clk 0:00:42]} 52. Kh3 {[%clk 0:00:03]}  Re2 {[%clk 0:00:42]} 0-1


[Site "https://www.chess.com"]

[Event "Titled Tuesday Blitz March 21 Late 2023"]
[White "Defend1r"]
[Black "Bashirli, Nail"]
[BlackFideId "13406809"]
[WhiteElo "2573"]
[BlackElo "2338"]
[Result "0-1"]
[Round "04"]
[TimeControl "180+2"]
[Date "2023.03.21"]
[WhiteClock "0:00:29"]
[BlackClock "0:01:40"]

1. e4 {[%clk 0:03:00]}  Nf6 {[%clk 0:03:00]} 2. e5 {[%clk 0:03:00]}  Nd5 {[%clk 0:03:00]} 3. d4 {[%clk 0:02:59]}  d6 {[%clk 0:03:00]} 4. c4 {[%clk 0:02:59]}  Nb6 {[%clk 0:02:59]} 5. exd6 {[%clk 0:02:59]}  cxd6 {[%clk 0:03:00]} 6. Nc3 {[%clk 0:02:50]}  g6 {[%clk 0:02:57]} 7. h3 {[%clk 0:02:49]}  Bg7 {[%clk 0:02:56]} 8. Nf3 {[%clk 0:02:47]}  O-O {[%clk 0:02:56]} 9. b3 {[%clk 0:02:47]}  Bf5 {[%clk 0:02:54]} 10. Be3 {[%clk 0:02:47]}  Nc6 {[%clk 0:02:53]} 11. Bd3 {[%clk 0:02:42]}  d5 {[%clk 0:02:54]} 12. Bxf5 {[%clk 0:02:42]}  gxf5 {[%clk 0:02:54]} 13. c5 {[%clk 0:02:39]}  Nd7 {[%clk 0:02:55]} 14. O-O {[%clk 0:02:39]}  Nxc5 {[%clk 0:02:53]} 15. dxc5 {[%clk 0:02:35]}  Bxc3 {[%clk 0:02:54]} 16. Bh6 {[%clk 0:02:35]}  Bg7 {[%clk 0:02:50]} 17. Qc1 {[%clk 0:02:33]}  e6 {[%clk 0:02:49]} 18. Bxg7 {[%clk 0:02:17]}  Kxg7 {[%clk 0:02:50]} 19. Re1 {[%clk 0:02:17]}  Qf6 {[%clk 0:02:48]} 20. Qf4 {[%clk 0:02:10]}  Rfd8 {[%clk 0:02:46]} 21. Rad1 {[%clk 0:02:09]}  Rd7 {[%clk 0:02:45]} 22. h4 {[%clk 0:02:07]}  Rad8 {[%clk 0:02:44]} 23. h5 {[%clk 0:02:05]}  d4 {[%clk 0:02:44]} 24. Rd3 {[%clk 0:01:41]}  Rd5 {[%clk 0:02:39]} 25. h6+ {[%clk 0:01:24]}  Qxh6 {[%clk 0:02:33]} 26. Ng5 {[%clk 0:01:24]}  e5 {[%clk 0:02:27]} 27. Qg3 {[%clk 0:01:16]}  Qg6 {[%clk 0:02:27]} 28. Qh4 {[%clk 0:01:15]}  f4 {[%clk 0:02:11]} 29. Rh3 {[%clk 0:00:50]}  h6 {[%clk 0:02:03]} 30. Nf3 {[%clk 0:00:46]}  d3 {[%clk 0:01:59]} 31. Rxe5 {[%clk 0:00:45]}  Nxe5 {[%clk 0:01:41]} 32. Nxe5 {[%clk 0:00:44]}  Qg5 {[%clk 0:01:41]} 33. Qxg5+ {[%clk 0:00:28]}  hxg5 {[%clk 0:01:42]} 34. Nxd3 {[%clk 0:00:29]}  Rxd3 {[%clk 0:01:40]} 0-1


[Site "https://www.chess.com"]

[Event "Titled Tuesday Blitz March 21 Late 2023"]
[White "Medina Paz, Miguel"]
[Black "Aldokhin, Ivan"]
[WhiteFideId "7300379"]
[BlackFideId "24115720"]
[WhiteElo "2428"]
[BlackElo "2322"]
[Result "0-1"]
[Round "04"]
[TimeControl "180+2"]
[Date "2023.03.21"]
[WhiteClock "0:01:47"]
[BlackClock "0:00:58"]

1. d4 {[%clk 0:02:56]}  Nf6 {[%clk 0:02:59]} 2. c4 {[%clk 0:02:56]}  g6 {[%clk 0:03:00]} 3. Nc3 {[%clk 0:02:55]}  Bg7 {[%clk 0:03:00]} 4. e4 {[%clk 0:02:54]}  d6 {[%clk 0:03:01]} 5. Be2 {[%clk 0:02:54]}  O-O {[%clk 0:03:00]} 6. Nf3 {[%clk 0:02:54]}  Nc6 {[%clk 0:03:00]} 7. O-O {[%clk 0:02:53]}  Re8 {[%clk 0:03:01]} 8. Be3 {[%clk 0:02:36]}  e5 {[%clk 0:03:00]} 9. d5 {[%clk 0:02:36]}  Nd4 {[%clk 0:03:01]} 10. Bg5 {[%clk 0:02:31]}  h6 {[%clk 0:02:56]} 11. Bh4 {[%clk 0:02:31]}  g5 {[%clk 0:02:49]} 12. Bg3 {[%clk 0:02:30]}  Nxe2+ {[%clk 0:02:44]} 13. Qxe2 {[%clk 0:02:29]}  Nh5 {[%clk 0:02:40]} 14. Nd2 {[%clk 0:02:25]}  Nf4 {[%clk 0:02:38]} 15. Qd1 {[%clk 0:02:24]}  Qf6 {[%clk 0:02:27]} 16. Qb1 {[%clk 0:02:22]}  h5 {[%clk 0:02:23]} 17. h3 {[%clk 0:02:17]}  h4 {[%clk 0:02:18]} 18. Bxf4 {[%clk 0:02:08]}  exf4 {[%clk 0:02:18]} 19. f3 {[%clk 0:02:06]}  Qd4+ {[%clk 0:01:57]} 20. Rf2 {[%clk 0:02:05]}  Qc5 {[%clk 0:01:46]} 21. Kf1 {[%clk 0:01:58]}  Bd7 {[%clk 0:01:28]} 22. Qd3 {[%clk 0:01:56]}  a6 {[%clk 0:01:20]} 23. Nb3 {[%clk 0:01:54]}  Qb4 {[%clk 0:01:16]} 24. Nd4 {[%clk 0:01:48]}  b5 {[%clk 0:01:08]} 25. cxb5 {[%clk 0:01:47]}  Qxd4 {[%clk 0:00:58]} 0-1


[Site "https://www.chess.com"]

[Event "Titled Tuesday Blitz March 21 Late 2023"]
[White "Ezat, Mohamed"]
[Black "Gadimbayli, Abdulla"]
[WhiteFideId "10600906"]
[BlackFideId "13404938"]
[WhiteElo "2386"]
[BlackElo "2390"]
[Result "0-1"]
[Round "04"]
[TimeControl "180+2"]
[Date "2023.03.21"]
[WhiteClock "0:00:02"]
[BlackClock "0:00:35"]

1. d4 {[%clk 0:03:00]}  d5 {[%clk 0:02:53]} 2. Nf3 {[%clk 0:03:00]}  Nc6 {[%clk 0:02:54]} 3. Nc3 {[%clk 0:02:58]}  Bf5 {[%clk 0:02:52]} 4. a3 {[%clk 0:02:57]}  e6 {[%clk 0:02:52]} 5. Bf4 {[%clk 0:02:56]}  Bd6 {[%clk 0:02:52]} 6. Bg3 {[%clk 0:02:57]}  Nf6 {[%clk 0:02:52]} 7. e3 {[%clk 0:02:57]}  O-O {[%clk 0:02:52]} 8. Bd3 {[%clk 0:02:56]}  Ne7 {[%clk 0:02:53]} 9. Ne5 {[%clk 0:02:55]}  c5 {[%clk 0:02:51]} 10. Bh4 {[%clk 0:02:52]}  Bxd3 {[%clk 0:02:51]} 11. cxd3 {[%clk 0:02:46]}  cxd4 {[%clk 0:02:40]} 12. exd4 {[%clk 0:02:46]}  Nf5 {[%clk 0:02:28]} 13. Bxf6 {[%clk 0:02:42]}  Qxf6 {[%clk 0:02:29]} 14. Nd7 {[%clk 0:02:39]}  Qg5 {[%clk 0:02:30]} 15. g3 {[%clk 0:02:26]}  Rfd8 {[%clk 0:02:25]} 16. Nc5 {[%clk 0:02:26]}  Nxd4 {[%clk 0:01:52]} 17. Nxb7 {[%clk 0:02:24]}  Qe5+ {[%clk 0:01:53]} 18. Kf1 {[%clk 0:02:23]}  Rdb8 {[%clk 0:01:51]} 19. Nxd6 {[%clk 0:01:59]}  Qxd6 {[%clk 0:01:52]} 20. b4 {[%clk 0:01:54]}  a5 {[%clk 0:01:52]} 21. Kg2 {[%clk 0:01:51]}  axb4 {[%clk 0:01:51]} 22. axb4 {[%clk 0:01:50]}  Qxb4 {[%clk 0:01:52]} 23. Rxa8 {[%clk 0:01:46]}  Rxa8 {[%clk 0:01:53]} 24. Ne2 {[%clk 0:01:46]}  h6 {[%clk 0:01:38]} 25. h4 {[%clk 0:01:43]}  Ra2 {[%clk 0:01:37]} 26. Nxd4 {[%clk 0:01:42]}  Qxd4 {[%clk 0:01:38]} 27. Qf3 {[%clk 0:01:42]}  Ra1 {[%clk 0:01:03]} 28. Rxa1 {[%clk 0:01:36]}  Qxa1 {[%clk 0:01:04]} 29. Qf4 {[%clk 0:01:32]}  Qb2 {[%clk 0:01:00]} 30. d4 {[%clk 0:01:14]}  Qb1 {[%clk 0:00:58]} 31. f3 {[%clk 0:01:07]}  Qc2+ {[%clk 0:00:57]} 32. Kh3 {[%clk 0:01:05]}  Qf5+ {[%clk 0:00:50]} 33. Qxf5 {[%clk 0:01:04]}  exf5 {[%clk 0:00:51]} 34. g4 {[%clk 0:00:55]}  fxg4+ {[%clk 0:00:45]} 35. Kxg4 {[%clk 0:00:49]}  g6 {[%clk 0:00:41]} 36. f4 {[%clk 0:00:24]}  Kg7 {[%clk 0:00:36]} 37. h5 {[%clk 0:00:13]}  Kf6 {[%clk 0:00:37]} 38. f5 {[%clk 0:00:09]}  gxh5+ {[%clk 0:00:35]} 39. Kf4 {[%clk 0:00:01]}  h4 {[%clk 0:00:35]} 40. Kg4 {[%clk 0:00:01]}  h3 {[%clk 0:00:34]} 41. Kxh3 {[%clk 0:00:02]}  Kxf5 {[%clk 0:00:35]} 0-1


[Site "https://www.chess.com"]

[Event "Titled Tuesday Blitz March 21 Late 2023"]
[White "Preotu, Razvan"]
[Black "Luo, Terry"]
[WhiteFideId "2613280"]
[BlackFideId "30931045"]
[WhiteElo "2407"]
[BlackElo "2265"]
[Result "1-0"]
[Round "04"]
[TimeControl "180+2"]
[Date "2023.03.21"]
[WhiteClock "0:02:24"]
[BlackClock "0:02:34"]

1. e4 {[%clk 0:03:00]}  e5 {[%clk 0:03:00]} 2. Nf3 {[%clk 0:03:00]}  Nc6 {[%clk 0:03:00]} 3. Bc4 {[%clk 0:03:00]}  Bc5 {[%clk 0:03:00]} 4. c3 {[%clk 0:03:00]}  Nf6 {[%clk 0:03:01]} 5. d3 {[%clk 0:03:01]}  O-O {[%clk 0:03:01]} 6. O-O {[%clk 0:03:01]}  d5 {[%clk 0:03:02]} 7. exd5 {[%clk 0:03:01]}  Nxd5 {[%clk 0:03:03]} 8. Re1 {[%clk 0:03:01]}  Bg4 {[%clk 0:03:03]} 9. h3 {[%clk 0:02:59]}  Bh5 {[%clk 0:03:04]} 10. Nbd2 {[%clk 0:02:59]}  Nb6 {[%clk 0:03:03]} 11. Bb3 {[%clk 0:02:59]}  Qxd3 {[%clk 0:03:03]} 12. Nxe5 {[%clk 0:03:00]}  Qf5 {[%clk 0:03:03]} 13. Nef3 {[%clk 0:03:00]}  Rfe8 {[%clk 0:02:55]} 14. g4 {[%clk 0:02:58]}  Bxg4 {[%clk 0:02:56]} 15. hxg4 {[%clk 0:02:59]}  Qxg4+ {[%clk 0:02:57]} 16. Kh1 {[%clk 0:02:59]}  Qh3+ {[%clk 0:02:56]} 17. Nh2 {[%clk 0:02:55]}  Bxf2 {[%clk 0:02:56]} 18. Rxe8+ {[%clk 0:02:43]}  Rxe8 {[%clk 0:02:56]} 19. Nf3 {[%clk 0:02:41]}  Bg3 {[%clk 0:02:38]} 20. Bxf7+ {[%clk 0:02:39]}  Kh8 {[%clk 0:02:34]} 21. Bxe8 {[%clk 0:02:24]} 1-0


[Site "https://www.chess.com"]

[Event "Titled Tuesday Blitz March 21 Late 2023"]
[White "Do Valle Cardoso, Lucas"]
[Black "Shapiro, Viktor"]
[WhiteFideId "2163144"]
[BlackFideId "4175700"]
[WhiteElo "2383"]
[BlackElo "2152"]
[Result "1-0"]
[Round "04"]
[TimeControl "180+2"]
[Date "2023.03.21"]
[WhiteClock "0:00:10"]
[BlackClock "0:00:03"]

1. e4 {[%clk 0:03:00]}  Nf6 {[%clk 0:02:59]} 2. e5 {[%clk 0:03:00]}  Nd5 {[%clk 0:02:58]} 3. Nc3 {[%clk 0:02:59]}  Nb6 {[%clk 0:02:58]} 4. Nf3 {[%clk 0:02:57]}  d6 {[%clk 0:02:58]} 5. d4 {[%clk 0:02:56]}  Bg4 {[%clk 0:02:58]} 6. exd6 {[%clk 0:02:53]}  cxd6 {[%clk 0:02:57]} 7. Be2 {[%clk 0:02:50]}  e6 {[%clk 0:02:58]} 8. O-O {[%clk 0:02:49]}  Be7 {[%clk 0:02:58]} 9. a4 {[%clk 0:02:40]}  a5 {[%clk 0:02:57]} 10. Nb5 {[%clk 0:02:38]}  Nc6 {[%clk 0:02:55]} 11. c3 {[%clk 0:02:35]}  O-O {[%clk 0:02:54]} 12. h3 {[%clk 0:02:35]}  Bxf3 {[%clk 0:02:52]} 13. Bxf3 {[%clk 0:02:35]}  d5 {[%clk 0:02:53]} 14. Bf4 {[%clk 0:02:34]}  Rc8 {[%clk 0:02:53]} 15. Re1 {[%clk 0:02:21]}  Nc4 {[%clk 0:02:52]} 16. Qe2 {[%clk 0:02:05]}  Nd6 {[%clk 0:02:48]} 17. g3 {[%clk 0:01:50]}  Re8 {[%clk 0:02:48]} 18. h4 {[%clk 0:01:49]}  Bf8 {[%clk 0:02:36]} 19. h5 {[%clk 0:01:47]}  h6 {[%clk 0:02:36]} 20. Kg2 {[%clk 0:01:45]}  Nc4 {[%clk 0:02:30]} 21. b3 {[%clk 0:01:39]}  Nd6 {[%clk 0:02:27]} 22. Rad1 {[%clk 0:01:28]}  Nxb5 {[%clk 0:02:22]} 23. axb5 {[%clk 0:01:27]}  Ne7 {[%clk 0:02:17]} 24. c4 {[%clk 0:01:24]}  a4 {[%clk 0:02:08]} 25. cxd5 {[%clk 0:01:18]}  Nxd5 {[%clk 0:02:08]} 26. Bxd5 {[%clk 0:01:17]}  Qxd5+ {[%clk 0:02:06]} 27. Qf3 {[%clk 0:01:09]}  Qxf3+ {[%clk 0:01:57]} 28. Kxf3 {[%clk 0:01:08]}  Rc3+ {[%clk 0:01:50]} 29. Re3 {[%clk 0:01:08]}  Rxe3+ {[%clk 0:01:46]} 30. fxe3 {[%clk 0:01:04]}  a3 {[%clk 0:01:41]} 31. e4 {[%clk 0:00:57]}  Rc8 {[%clk 0:01:40]} 32. d5 {[%clk 0:00:49]}  Rc3+ {[%clk 0:01:37]} 33. Kg4 {[%clk 0:00:46]}  exd5 {[%clk 0:01:33]} 34. exd5 {[%clk 0:00:45]}  a2 {[%clk 0:01:32]} 35. d6 {[%clk 0:00:44]}  Rd3 {[%clk 0:01:19]} 36. Ra1 {[%clk 0:00:16]}  Rxb3 {[%clk 0:01:04]} 37. Rxa2 {[%clk 0:00:14]}  Rxb5 {[%clk 0:01:04]} 38. Rd2 {[%clk 0:00:13]}  f5+ {[%clk 0:00:56]} 39. Kh3 {[%clk 0:00:12]}  Kf7 {[%clk 0:00:50]} 40. d7 {[%clk 0:00:12]}  Be7 {[%clk 0:00:50]} 41. d8=Q {[%clk 0:00:13]}  Bxd8 {[%clk 0:00:50]} 42. Rxd8 {[%clk 0:00:14]}  Ke7 {[%clk 0:00:29]} 43. Rg8 {[%clk 0:00:13]}  Kf7 {[%clk 0:00:29]} 44. Rc8 {[%clk 0:00:14]}  g5 {[%clk 0:00:19]} 45. hxg6+ {[%clk 0:00:14]}  Kxg6 {[%clk 0:00:19]} 46. Rh8 {[%clk 0:00:14]}  h5 {[%clk 0:00:13]} 47. Rh6+ {[%clk 0:00:15]}  Kg7 {[%clk 0:00:13]} 48. Rxh5 {[%clk 0:00:16]}  Rd5 {[%clk 0:00:13]} 49. Kh4 {[%clk 0:00:09]}  Kg6 {[%clk 0:00:03]} 50. Rh6+ {[%clk 0:00:09]}  Kf7 {[%clk 0:00:03]} 51. Rb6 {[%clk 0:00:09]}  Rd7 {[%clk 0:00:03]} 52. Kg5 {[%clk 0:00:10]}  Ke7 {[%clk 0:00:03]} 53. Kxf5 {[%clk 0:00:10]}  Kd8 {[%clk 0:00:03]} 54. g4 {[%clk 0:00:09]}  Kc8 {[%clk 0:00:03]} 55. Rf6 {[%clk 0:00:09]}  Rd5+ {[%clk 0:00:03]} 56. Be5 {[%clk 0:00:10]}  b5 {[%clk 0:00:03]} 1-0


[Site "https://www.chess.com"]

[Event "Titled Tuesday Blitz March 21 Late 2023"]
[White "cryptoguru02"]
[Black "Domingo Nunez, Ruben"]
[BlackFideId "22245570"]
[WhiteElo "2494"]
[BlackElo "2404"]
[Result "1-0"]
[Round "04"]
[TimeControl "180+2"]
[Date "2023.03.21"]
[WhiteClock "0:00:04"]
[BlackClock "0:00:01"]

1. d4 {[%clk 0:03:00]}  g6 {[%clk 0:02:58]} 2. e4 {[%clk 0:03:00]}  Bg7 {[%clk 0:02:59]} 3. Nc3 {[%clk 0:03:00]}  c6 {[%clk 0:02:57]} 4. Be3 {[%clk 0:02:41]}  d5 {[%clk 0:02:58]} 5. Qd2 {[%clk 0:02:39]}  dxe4 {[%clk 0:02:58]} 6. Nxe4 {[%clk 0:02:39]}  Nf6 {[%clk 0:02:59]} 7. Nxf6+ {[%clk 0:02:38]}  exf6 {[%clk 0:03:00]} 8. Nf3 {[%clk 0:02:35]}  O-O {[%clk 0:03:00]} 9. Bd3 {[%clk 0:02:33]}  Re8 {[%clk 0:03:00]} 10. O-O-O {[%clk 0:02:33]}  Be6 {[%clk 0:02:54]} 11. a3 {[%clk 0:02:30]}  b5 {[%clk 0:02:52]} 12. h4 {[%clk 0:02:28]}  h5 {[%clk 0:02:51]} 13. Ng1 {[%clk 0:02:00]}  Qd5 {[%clk 0:02:51]} 14. Ne2 {[%clk 0:01:55]}  Qa2 {[%clk 0:02:41]} 15. Qa5 {[%clk 0:01:36]}  Bf8 {[%clk 0:02:23]} 16. b4 {[%clk 0:01:03]}  Be7 {[%clk 0:00:55]} 17. Nc3 {[%clk 0:00:55]}  Qa1+ {[%clk 0:00:55]} 18. Kd2 {[%clk 0:00:55]}  Qxd1+ {[%clk 0:00:55]} 19. Rxd1 {[%clk 0:00:18]}  Bd8 {[%clk 0:00:56]} 20. Ne4 {[%clk 0:00:18]}  Kg7 {[%clk 0:00:42]} 21. Nxf6 {[%clk 0:00:14]}  Rh8 {[%clk 0:00:37]} 22. d5 {[%clk 0:00:06]}  Bxa5 {[%clk 0:00:19]} 23. bxa5 {[%clk 0:00:07]}  Bxd5 {[%clk 0:00:12]} 24. Bd4 {[%clk 0:00:05]}  Rd8 {[%clk 0:00:07]} 25. Nxd5+ {[%clk 0:00:04]}  Kf8 {[%clk 0:00:05]} 26. Nc7 {[%clk 0:00:05]}  Rxd4 {[%clk 0:00:05]} 27. Nxa8 {[%clk 0:00:05]}  Rd7 {[%clk 0:00:05]} 28. Kc3 {[%clk 0:00:05]}  Ke7 {[%clk 0:00:05]} 29. Be2 {[%clk 0:00:04]}  Rxd1 {[%clk 0:00:04]} 30. Bxd1 {[%clk 0:00:05]}  Kd6 {[%clk 0:00:05]} 31. Bf3 {[%clk 0:00:05]}  Nd7 {[%clk 0:00:03]} 32. a4 {[%clk 0:00:06]}  Nc5 {[%clk 0:00:01]} 33. axb5 {[%clk 0:00:05]}  cxb5 {[%clk 0:00:01]} 34. Kb4 {[%clk 0:00:06]}  Ne6 {[%clk 0:00:01]} 35. Kxb5 {[%clk 0:00:06]}  Nd4+ {[%clk 0:00:02]} 36. Kc4 {[%clk 0:00:06]}  Nxc2 {[%clk 0:00:03]} 37. a6 {[%clk 0:00:06]}  Ne1 {[%clk 0:00:02]} 38. Kc3 {[%clk 0:00:05]}  Kc5 {[%clk 0:00:01]} 39. Bb7 {[%clk 0:00:04]} 1-0


[Site "https://www.chess.com"]

[Event "Titled Tuesday Blitz March 21 Late 2023"]
[White "Kubatko, Ivan"]
[Black "Goltsev, Dmitry"]
[WhiteFideId "24111473"]
[BlackFideId "24176710"]
[WhiteElo "2285"]
[BlackElo "2336"]
[Result "1-0"]
[Round "04"]
[TimeControl "180+2"]
[Date "2023.03.21"]
[WhiteClock "0:00:30"]
[BlackClock "0:00:36"]

1. e4 {[%clk 0:03:00]}  e6 {[%clk 0:02:57]} 2. d4 {[%clk 0:03:00]}  d5 {[%clk 0:02:57]} 3. exd5 {[%clk 0:03:01]}  exd5 {[%clk 0:02:58]} 4. Nf3 {[%clk 0:03:02]}  Nf6 {[%clk 0:02:59]} 5. c4 {[%clk 0:03:02]}  c5 {[%clk 0:02:59]} 6. cxd5 {[%clk 0:02:56]}  Nxd5 {[%clk 0:02:58]} 7. Bb5+ {[%clk 0:02:54]}  Nc6 {[%clk 0:02:57]} 8. O-O {[%clk 0:02:53]}  Be7 {[%clk 0:02:58]} 9. Ne5 {[%clk 0:02:42]}  O-O {[%clk 0:02:46]} 10. Nxc6 {[%clk 0:02:12]}  bxc6 {[%clk 0:02:47]} 11. Bxc6 {[%clk 0:02:12]}  a5 {[%clk 0:02:47]} 12. Bxa8 {[%clk 0:02:10]}  Ba6 {[%clk 0:02:38]} 13. Bxd5 {[%clk 0:02:04]}  Bxf1 {[%clk 0:02:38]} 14. Qxf1 {[%clk 0:01:34]}  Qxd5 {[%clk 0:02:37]} 15. dxc5 {[%clk 0:01:35]}  Bxc5 {[%clk 0:02:26]} 16. Nc3 {[%clk 0:01:34]}  Qf5 {[%clk 0:02:25]} 17. Be3 {[%clk 0:01:33]}  Bd6 {[%clk 0:02:22]} 18. Rd1 {[%clk 0:01:31]}  Qe5 {[%clk 0:02:23]} 19. g3 {[%clk 0:01:30]}  Bb4 {[%clk 0:02:20]} 20. Qd3 {[%clk 0:01:26]}  Qh5 {[%clk 0:02:16]} 21. Qd5 {[%clk 0:01:22]}  Qg4 {[%clk 0:02:13]} 22. Qe4 {[%clk 0:01:16]}  Qh5 {[%clk 0:02:11]} 23. Rd5 {[%clk 0:01:15]}  Qh3 {[%clk 0:02:07]} 24. Qf5 {[%clk 0:01:08]}  Qxf5 {[%clk 0:01:53]} 25. Rxf5 {[%clk 0:01:09]}  Rc8 {[%clk 0:01:54]} 26. Nd5 {[%clk 0:01:06]}  Bf8 {[%clk 0:01:50]} 27. Nb6 {[%clk 0:01:02]}  Rc2 {[%clk 0:01:50]} 28. Rxa5 {[%clk 0:00:59]}  f6 {[%clk 0:01:46]} 29. Ra8 {[%clk 0:00:56]}  Kf7 {[%clk 0:01:46]} 30. b3 {[%clk 0:00:55]}  g5 {[%clk 0:01:42]} 31. g4 {[%clk 0:00:53]}  Bd6 {[%clk 0:01:40]} 32. Kg2 {[%clk 0:00:51]}  Kg6 {[%clk 0:01:36]} 33. Nc4 {[%clk 0:00:51]}  Bb4 {[%clk 0:01:33]} 34. Ra6 {[%clk 0:00:49]}  h5 {[%clk 0:01:30]} 35. h3 {[%clk 0:00:49]}  hxg4 {[%clk 0:01:27]} 36. hxg4 {[%clk 0:00:49]}  Bc3 {[%clk 0:01:25]} 37. Kf3 {[%clk 0:00:47]}  Kf7 {[%clk 0:01:23]} 38. Ra7+ {[%clk 0:00:47]}  Kg6 {[%clk 0:01:22]} 39. Nd6 {[%clk 0:00:47]}  f5 {[%clk 0:01:17]} 40. Nxf5 {[%clk 0:00:46]}  Bf6 {[%clk 0:01:11]} 41. Ra6 {[%clk 0:00:46]}  Kf7 {[%clk 0:01:09]} 42. Ra7+ {[%clk 0:00:45]}  Kg8 {[%clk 0:01:07]} 43. a4 {[%clk 0:00:44]}  Rc3 {[%clk 0:01:03]} 44. Rb7 {[%clk 0:00:44]}  Bd8 {[%clk 0:00:59]} 45. Rb8 {[%clk 0:00:43]}  Kf7 {[%clk 0:00:57]} 46. Rxd8 {[%clk 0:00:42]}  Rxb3 {[%clk 0:00:57]} 47. a5 {[%clk 0:00:41]}  Ra3 {[%clk 0:00:56]} 48. Ra8 {[%clk 0:00:38]}  Kg6 {[%clk 0:00:49]} 49. a6 {[%clk 0:00:36]}  Kh7 {[%clk 0:00:47]} 50. a7 {[%clk 0:00:37]}  Kg6 {[%clk 0:00:40]} 51. Rg8+ {[%clk 0:00:36]}  Kh7 {[%clk 0:00:40]} 52. a8=Q {[%clk 0:00:31]}  Rxe3+ {[%clk 0:00:36]} 53. Nxe3 {[%clk 0:00:31]}  Kh6 {[%clk 0:00:36]} 54. Qf8+ {[%clk 0:00:30]}  Kh7 {[%clk 0:00:36]} 55. Qg7# {[%clk 0:00:30]} 1-0


[Site "https://www.chess.com"]

[Event "Titled Tuesday Blitz March 21 Late 2023"]
[White "Spata, German"]
[Black "Guliev, Logman"]
[WhiteFideId "113026"]
[BlackFideId "13400061"]
[WhiteElo "2238"]
[BlackElo "2161"]
[Result "1-0"]
[Round "04"]
[TimeControl "180+2"]
[Date "2023.03.21"]
[WhiteClock "0:00:03"]
[BlackClock "0:00:01"]

1. Nf3 {[%clk 0:02:57]}  d5 {[%clk 0:02:57]} 2. g3 {[%clk 0:02:57]}  g6 {[%clk 0:02:54]} 3. Bg2 {[%clk 0:02:57]}  Bg7 {[%clk 0:02:55]} 4. d4 {[%clk 0:02:56]}  Nf6 {[%clk 0:02:52]} 5. O-O {[%clk 0:02:56]}  O-O {[%clk 0:02:53]} 6. c4 {[%clk 0:02:46]}  c6 {[%clk 0:02:52]} 7. b3 {[%clk 0:02:44]}  dxc4 {[%clk 0:02:44]} 8. bxc4 {[%clk 0:02:44]}  c5 {[%clk 0:02:45]} 9. Bb2 {[%clk 0:02:44]}  Qb6 {[%clk 0:02:44]} 10. Qb3 {[%clk 0:02:44]}  Ne4 {[%clk 0:02:32]} 11. e3 {[%clk 0:02:34]}  Nc6 {[%clk 0:02:22]} 12. Nc3 {[%clk 0:02:28]}  Nxc3 {[%clk 0:02:18]} 13. Bxc3 {[%clk 0:02:28]}  Bg4 {[%clk 0:02:11]} 14. Ne5 {[%clk 0:01:54]}  Nxe5 {[%clk 0:01:55]} 15. dxe5 {[%clk 0:01:51]}  Rab8 {[%clk 0:01:54]} 16. h3 {[%clk 0:01:41]}  Be6 {[%clk 0:01:43]} 17. Rfd1 {[%clk 0:01:31]}  Qc7 {[%clk 0:01:42]} 18. f4 {[%clk 0:01:22]}  b5 {[%clk 0:01:40]} 19. Bd5 {[%clk 0:01:03]}  bxc4 {[%clk 0:01:38]} 20. Qa4 {[%clk 0:00:59]}  Bxh3 {[%clk 0:01:32]} 21. Qxc4 {[%clk 0:00:58]}  Bg4 {[%clk 0:01:26]} 22. Rdb1 {[%clk 0:00:57]}  e6 {[%clk 0:01:19]} 23. Be4 {[%clk 0:00:50]}  Rfd8 {[%clk 0:01:16]} 24. Qa4 {[%clk 0:00:42]}  c4 {[%clk 0:01:02]} 25. Bd4 {[%clk 0:00:28]}  a5 {[%clk 0:00:42]} 26. Rc1 {[%clk 0:00:24]}  Rb4 {[%clk 0:00:40]} 27. Qc2 {[%clk 0:00:15]}  Bf8 {[%clk 0:00:40]} 28. a3 {[%clk 0:00:15]}  Rb3 {[%clk 0:00:37]} 29. Qxb3 {[%clk 0:00:14]}  Rc8 {[%clk 0:00:10]} 30. Qb6 {[%clk 0:00:14]}  Qd7 {[%clk 0:00:10]} 31. a4 {[%clk 0:00:10]}  h5 {[%clk 0:00:07]} 32. Qb5 {[%clk 0:00:11]}  Qc7 {[%clk 0:00:07]} 33. Rc2 {[%clk 0:00:08]}  h4 {[%clk 0:00:06]} 34. Rac1 {[%clk 0:00:07]}  Rb8 {[%clk 0:00:03]} 35. Qxc4 {[%clk 0:00:07]}  Qd7 {[%clk 0:00:02]} 36. Qc7 {[%clk 0:00:06]}  Qe8 {[%clk 0:00:01]} 37. Qc6 {[%clk 0:00:02]}  Qd8 {[%clk 0:00:01]} 38. Qc7 {[%clk 0:00:02]}  Qe8 {[%clk 0:00:01]} 39. Qc4 {[%clk 0:00:03]} 1-0


[Site "https://www.chess.com"]